Cogmind - Beta 14 @@@ ROGUE MODE // 2024.09.14 @ 22:27:18 Player: ZarZap Result: Destroyed by G-34 Mercenary with Small Laser Performance ------------- Evolutions (0) 0 Regions Visited (2) 400 Robots Destroyed (23) 115 Value Destroyed (453) 453 Prototype IDs (0) 0 Alien Tech Used (0) 0 Bonus (0) 0 TOTAL SCORE: 968 Bonus ------- None Cogmind --------- Core Integrity 0/250 Matter 352/500 Energy 124/125 System Corruption 0% Temperature Cool (6) Movement Walking (260) Ox2 Location -10/Mines Parts ------- > --- POWER (1) -------- Light Ion Engine > --- PROPULSION (2) --- Aluminum Leg Aluminum Leg > --- UTILITY (2) ------ High-capacity Storage Unit High-capacity Matter Pod > --- WEAPON (2) ------- Light Assault Rifle > --- INVENTORY (20) --- Ion Engine Light Ion Engine Aluminum Leg Aluminum Leg Aluminum Leg Heat Sink Light Assault Rifle Light Assault Rifle Light Cannon Datajack Welding Torch Peak State ------------ > --- POWER ------------ Light Nuclear Core > --- PROPULSION ------- Aluminum Leg Aluminum Leg > --- UTILITY ---------- High-capacity Storage Unit High-capacity Matter Pod > --- WEAPON ----------- Medium Laser Light Assault Rifle > --- INVENTORY -------- Ion Engine Aluminum Leg Aluminum Leg Aluminum Leg Aluminum Leg Aluminum Leg Heat Sink Light Cannon Datajack Welding Torch [Rating: 10] Favorites ----------- Power Light Nuclear Core Engine Ion Engine Power Core Light Nuclear Core Propulsion Aluminum Leg Leg Aluminum Leg Utility High-capacity Storage Unit Storage High-capacity Storage Unit Weapon Medium Laser Energy Gun Medium Laser Ballistic Gun Light Assault Rifle Build | -11 -10 -10 ------- Run | Yrd Mat Min Slots Evolved . | . . . Power . | . . . Propulsion . | . . . Utility . | . . . Weapon . | . . . Parts Attached 14 | 6 5 3 Power 3 | 1 1 1 Engine 2 | 1 . 1 Core 1 | . 1 . Reactor . | . . . Propulsion 5 | 2 1 2 Treads . | . . . Leg 5 | 2 1 2 Wheel . | . . . Hover . | . . . Flight . | . . . Utility 3 | 1 2 . Device . | . . . Storage 3 | 1 2 . Processor . | . . . Hackware . | . . . Protection . | . . . Artifact . | . . . Weapon 3 | 2 1 . Energy Gun 1 | 1 . . Energy Cannon . | . . . Ballistic Gun 2 | 1 1 . Ballistic Cannon . | . . . Launcher . | . . . Special Weapon . | . . . Impact Weapon . | . . . Slashing Weapon . | . . . Piercing Weapon . | . . . Special Melee Weapon . | . . . Unidentified Prototypes . | . . . Parts Lost 3 | . 2 1 Power 1 | . 1 . Propulsion . | . . . Utility . | . . . Weapon 2 | . 1 1 Highest Loss Streak 1 | . 1 1 To Critical Strikes . | . . . Average Slot Usage (%) 98 | . 97 99 Engine 5 | . 7 2 Core 8 | . 5 11 Leg 28 | . 28 28 Storage 26 | . 25 28 Energy Gun 13 | . 14 13 Ballistic Gun 13 | . 13 14 Peak Build Rating 10 | 6 9 10 Average Rating 8 | 4 7 9 On Entrance 5 | . 6 9 Naked Turns . | . . . Heaviest Build 53 | 14 53 52 Greatest Support 20 | 20 20 20 Greatest Overweight (x) 2 | . 2 2 Average Overweight (x) 1 | . 1 2 Largest Inventory Capacity 20 | 8 20 20 Average Capacity 18 | 6 18 20 Most Carried 11 | 1 9 11 Average Carried 7 | . 6 10 Final Capacity 20 | 8 20 20 Final Carried 11 | 1 9 11 Class Distribution -------------------- 100% | Mutant Dominant Class ---------------- Mutant | -10/Materials Mutant | -10/Mines Resources | -11 -10 -10 ----------- Run | Yrd Mat Min Matter Collected 492 | 97 224 171 Remotely . | . . . Salvage Created 724 | . 603 121 Parts 46 | . 31 15 Haulers Intercepted . | . . . Recyclers Shooed 1 | . 1 . Parts Field Recycled . | . . . Retrieved Matter . | . . . Parts Self-Destructed . | . . . Prevented . | . . . Kills | -11 -10 -10 ------- Run | Yrd Mat Min Combat Hostiles Destroyed 17 | . 9 8 Guns 17 | . 9 8 Classes Destroyed 5 | . 4 1 Worker 3 | . 2 1 Recycler 1 | . 1 . Watcher 2 | . 2 . Swarmer 8 | . . 8 Grunt 9 | . 9 . Best Kill Streak 6 | . 6 3 Combat Bots Only 4 | . 4 3 Max Kills in Single Turn 1 | . 1 1 Gunslinging . | . . . Exploded . | . . . Melee . | . . . Uniques/NPCs Destroyed . | . . . Combat | -11 -10 -10 -------- Run | Yrd Mat Min Hostile Shots Fired 130 | . 75 55 Missed 39 | . 23 16 Damage Taken 982 | . 652 330 Core 251 | . 180 71 Absorbed by Shields . | . . . Core Remaining (%) 100 | 100 . . Volleys Fired 60 | . 40 20 Largest 2 | . 2 2 Hottest 70 | . 70 70 Shots Fired 117 | . 79 38 Gun 117 | . 79 38 Cannon . | . . . Launcher . | . . . Special . | . . . Kinetic 59 | . 39 20 Thermal 58 | . 40 18 Explosive . | . . . Electromagnetic . | . . . Robot Hit Streak 12 | . 12 8 Robot Miss Streak 5 | . 4 5 Penetration Max . | . . . Secondary Targets 7 | . 3 4 Max Gunslinging Chain 1 | . 1 1 Shots Hit Robots 66 | . 51 15 Core Hits 39 | . 28 11 Critical Kills . | . . . Critical Parts Destroyed . | . . . Critical Strikes 5 | . 3 2 Burn 5 | . 3 2 Melee Attacks . | . . . Impact . | . . . Slashing . | . . . Piercing . | . . . Sneak Attacks . | . . . Combat Hostiles . | . . . Follow-up Attacks . | . . . Damage Inflicted 805 | . 633 172 Guns 797 | . 633 164 Cannons . | . . . Explosions . | . . . Melee . | . . . Ramming 8 | . . 8 Kinetic 324 | . 272 52 Thermal 473 | . 361 112 Explosive . | . . . Electromagnetic . | . . . Impact . | . . . Slashing . | . . . Piercing . | . . . Highest Corruption . | . . . Average Corruption . | . . . Corruption Purged . | . . . Corruption Blocked . | . . . Overload Shots . | . . . Overflow Damage . | . . . Projectiles . | . . . Explosions . | . . . Melee . | . . . Knockbacks . | . . . Impact . | . . . Kinetic . | . . . Secondary . | . . . Self-Inflicted Damage . | . . . Shots . | . . . Rammed . | . . . Targets Rammed 1 | . . 1 Kicked 1 | . . 1 Crushed . | . . . Highest Temperature 148 | . 114 148 Average Temperature 43 | . 41 48 Received Heat Transfer 426 | . 381 45 Siege Activations . | . . . Robots Corrupted . | . . . Combat Hostiles . | . . . Parts Fried . | . . . Impact Corruptions . | . . . Robots Melted . | . . . Combat Hostiles . | . . . Parts Melted 4 | . 3 1 Heat Transferred 1776 | . 1295 481 Parts Sabotaged . | . . . Parts Stolen . | . . . Parts Stripped . | . . . Power Chain Reactions . | . . . Alert | -11 -10 -10 ------- Run | Yrd Mat Min Peak Influence 279 | . 279 150 Initial 30 | . . 30 Average 109 | . 130 99 Maximum Alert Level 1 | . 1 . Low Security (%) 85 | 100 71 100 Level 1 14 | . 28 . Level 2 . | . . . Level 3 . | . . . Level 4 . | . . . Level 5 . | . . . High Security . | . . . Max Security . | . . . Squads Dispatched 1 | . 1 . Investigation . | . . . Extermination . | . . . Reinforcement 1 | . 1 . Assault . | . . . Garrison . | . . . Intercept . | . . . Searches Triggered . | . . . Construction Impeded . | . . . Haulers Reinforced . | . . . Active Scanning Responses . | . . . Cargo Convoy Interrupts . | . . . Stealth | -11 -10 -10 --------- Run | Yrd Mat Min Distress Signals 2 | . 2 . Communications Jammed . | . . . Distress Signals . | . . . Times Spotted 29 | . 18 11 Peak Tracking Total 5 | . 5 3 Tactical Retreats 2 | . 2 . Traps | -11 -10 -10 ------- Run | Yrd Mat Min Traps Triggered . | . . . Indirectly . | . . . Trap Hack Attempts . | . . . Triggered . | . . . Disarmed . | . . . Reprogrammed . | . . . Reused . | . . . Traps Extracted . | . . . Installed . | . . . Triggered . | . . . Machines | -11 -10 -10 ---------- Run | Yrd Mat Min Machines Disabled . | . . . Max in Single Turn . | . . . Machines Repaired . | . . . Machines Dismantled . | . . . Machines Sabotaged . | . . . Overloaded Fab Kills . | . . . Hacking | -11 -10 -10 --------- Run | Yrd Mat Min Machines Accessed . | . . . Terminals . | . . . Fabricators . | . . . Repair Stations . | . . . Recycling Units . | . . . Scanalyzers . | . . . Garrison Access . | . . . Total Hacks . | . . . Successful . | . . . Failed . | . . . Catastrophic . | . . . Database Lockouts . | . . . Manual . | . . . Terminals . | . . . Fabricators . | . . . Repair Stations . | . . . Recycling Units . | . . . Scanalyzers . | . . . Garrison Access . | . . . Terminal Hacks . | . . . Fabricator Hacks . | . . . Repair Station Hacks . | . . . Recycling Unit Hacks . | . . . Scanalyzer . | . . . Garrison Access Hacks . | . . . Unauthorized Hacks . | . . . Terminals . | . . . Fabricators . | . . . Repair Stations . | . . . Recycling Units . | . . . Scanalyzers . | . . . Garrison Access . | . . . Data Cores Recovered . | . . . Used . | . . . Hacking Detections . | . . . Full Trace Events . | . . . Feedback Events . | . . . Feedback Blocked . | . . . Robot Schematics Acquired . | . . . Robots Built . | . . . Authchips . | . . . Time . | . . . Total Robot Build Rating . | . . . Part Schematics Acquired . | . . . Parts Built . | . . . Authchips . | . . . Time . | . . . Total Part Build Rating . | . . . Parts Repaired . | . . . Time . | . . . Parts Recycled . | . . . Recycled Matter . | . . . Retrieved Matter . | . . . Retrieved Components . | . . . Parts Scanalyzed . | . . . Part Schematics Acquired . | . . . Parts Damaged . | . . . Bothacking | -11 -10 -10 ------------ Run | Yrd Mat Min Used RIF Installer . | . . . Robots Hacked . | . . . Non-combat . | . . . Combat . | . . . Robot Hacks Applied . | . . . Relay Couplers Released . | . . . Fabnet Peak Effective % . | . . . Robots Rewired . | . . . Allies Hacked . | . . . Hacks Repelled . | . . . Allies | -11 -10 -10 -------- Run | Yrd Mat Min Total Allies . | . . . Largest Group . | . . . Highest-Rated Group . | . . . Highest-Rated Ally . | . . . Total Orders . | . . . Ally Attacks . | . . . Total Damage . | . . . Kills . | . . . Allies Corrupted . | . . . Allies Melted . | . . . Intel | -11 -10 -10 ------- Run | Yrd Mat Min Robot Analysis Total . | . . . Derelict Logs Recovered . | . . . Drone Launches . | . . . Drone Recoveries . | . . . Exploration | -11 -10 -10 ------------- Run | Yrd Mat Min Turns Passed 1219 | 61 604 554 Spaces Moved 438 | 47 203 188 Core 6 | 6 . . Treads . | . . . Legs 432 | 41 203 188 Wheels . | . . . Hover . | . . . Flight . | . . . Fastest Speed 50 | 50 120 260 Average Speed 231 | 111 232 260 Slowest Speed 260 | 120 260 260 Overloaded Moves . | . . . Propulsion Burnouts . | . . . Robots Hopped . | . . . Cave-ins Triggered . | . . . Exploration Rate (%) 29 | 4 36 47 Regions Visited 2 Branch Regions 1 Pre-discovered Areas . | . . . Known Exits Taken . | . . . Unknown Exits Taken 2 | 1 1 . Scrap Searched 1 | . . 1 Spaces Dug . | . . . Terrain Destroyed . | . . . Melee . | . . . Projectile . | . . . AOE . | . . . Terrain Rammed . | . . . Walls Destroyed . | . . . Machines Disabled . | . . . Actions | -11 -10 -10 --------- Run | Yrd Mat Min Total 529 | 53 258 218 Wait 1 | . 1 . Move 436 | 46 202 188 Hop . | . . . Pick Up 14 | 1 9 4 Fast Attach 9 | 6 3 . Attach 1 | . 1 . Detach . | . . . Swap 4 | . 1 3 Drop 3 | . 1 2 Fire 60 | . 40 20 Melee . | . . . Ram . | . . . Kick 1 | . . 1 Crush . | . . . Escape Stasis . | . . . Rewire . | . . . Trap . | . . . Miscellaneous . | . . . Route ------- -11/Scrapyard -10/Materials (discovered 2 exits: [*Min x2]) -10/Mines (discovered 1 exit: [*Mat]) History --------- Turn | Location | Event 9 | -11/Scrapyard | Discovered new exit (range 15) 62 | -11/Scrapyard | Entered Materials 254 | -10/Materials | Discovered new exit (range 16) 302 | -10/Materials | Build established: Mutant 350 | -10/Materials | Core integrity fell below 50% 617 | -10/Materials | Discovered new exit (range 9) 666 | -10/Materials | Entered Mines 679 | -10/Mines | Core integrity fell below 20% 714 | -10/Mines | Discovered new exit (range 9) 1220 | -10/Mines | Destroyed by G-34 Mercenary with Small Laser Last Messages --------------- 01105_ Switching to secondary target: S-10 Pest. 01106_ K-01 Serf collects debris. 01108_ S-10 Pest destroyed. 01108_ Switching to secondary target: S-10 Pest. 01110_ K-01 Serf collects debris. 01122_ S-10 Pest destroyed. 01125_ K-01 Serf collects debris. 01135_ Acquired Lgt. Ion Engine. 01137_ Dropped Aluminum Leg. 01138_ Acquired 11 matter. 01140_ K-01 Serf collects debris. 01145_ Acquired 13 matter. 01148_ Acquired 16 matter. 01150_ K-01 Serf collects debris. 01153_ Acquired Lgt. Assault Rifle. 01154_ K-01 Serf collects debris. 01165_ Acquired Lgt. Assault Rifle. 01176_ U-05 Engineer lays Concrete. 01212_ K-01 Serf destroyed. 01214_ Med. Laser destroyed. Map ----- +----------------------------------------------------+ | ?????????????????????????????????????????????????? | | ?????????????????????????????????????????????????? | | ?????????????????????????????????????????????????? | | ?????????????????????????????????????????????????? | | ?????????????????????????????????????????????????? | | ?????????????????????????????????????????????????? | | ????????????????????????????????????##???????????? | | ????????????????????????????????????# ##?????????? | | ???????????????????????????####????## ?????????? | | ??????????????????????????## #???? ?????????? | | ?????????????????????????## #???# #?????????? | | ?????????????????????????# #??# #??####???? | | ?????????????????????????# ??# #?## ##??? | | ??????????????????????????# ### ### #??? | | ???????????????????????????# ## ##?? | | ????????????????????????????# #?? | | ????????????????????????????# ### | | ???????????????????????####?# = = | | ????????????????????#### ### = *= | | ???????????? ??????## ### = * ######## | | ???????????? ???## ### = #??????? | | ??????????? ## #?## #??????? | | ??????????? g ##?## ##??????? | | ????????????? g * #### ##???????? | | ????????????????????# %= ###????????? | | ????????????????????## @ r ##??????????? | | ?????????????????????# ### ##??????????? | | ????????????????????# #?# #??????????? | | ???????????????????# t #?## ##?????????? | | ????????????????? #?## ##????????? | | ????????????????### #?## ##???????? | | ??????????????????# ## #??## ##??????? | | ??????????????????# #?#### ##???# ###????? | | ??????????????????# ?????## ##????# #????? | | ?????????????????? ???????# #?????# ## #???? | | ????????????????? ???????# #?????# #?# ##???? | | ???????????????? ##???????? ?????# #??###????? | | ???????????????? ?????????? ?????# #?????????? | | ??????????????????????????? ????# #?????????? | | ??????????????????????????? ?????# ####??????? | | ??????????????????????????? ??????# #??????? | | ???????????????????????????????????## #??????? | | ???????????????????????????????????# ##?####? | | ??????????????????????????????????## ### ## | | ????????????????????????????????### ## # | | ???????????????????????????????## ### | | ???????????????????????????????# # ###?# | | ???????????????????????????????# ## #??## | | ???????????????????????????????# ### #### # | | ??????????????????????????????# #?# # | +----------------------------------------------------+ Best States ------------- Heat Dissipation 25 Energy Generation 14 Energy Capacity 250 Matter Stores 353 Matter Capacity 500 Sight Range 16 Terrain Scan Density 10 Evasion (%) 55 Item Schematics ----------------- None Robot Schematics ------------------ None Fabricated ------------ Nothing Alien Tech Used ----------------- None Achievements -------------- None Challenges ------------ None Game ------ Seed ThrowingResetTube Manual? 0 Play Time 00:10:05 Cumulative 14.5 hours Start 2024.09.14 @ 22:19:31 End 2024.09.14 @ 22:27:18 Sessions 1 Manual Loads 0 Difficulty Rogue Special Mode None Game No. 58 Rogue 58 Adventurer 0 Explorer 0 Win Type - Total 0 Types 0/0/0/0/0/0/0/0/0 Lore% 9 Gallery% 19 Achievement% 15 Wizard Run 0 Options --------- Layout 2 ASCII 0 Keyboard 0 Movement Mouse Keybinds 0 Fullscreen 1 Font 16/Smallcaps Map View 55x47 Zoom Use 0% Tactical HUD 1 Map Filters NONE Filters NONE Steam 1 RUN: 1a532553-2ce1-4815-a647-3e19675f09fb